bitfinex-derivatives/quotes_ETHF0:USTF0_20250212
["timestamp","ask_amount","ask_price","bid_price","bid_amount"]
[1739376215831,1.938,2607.7,2607.1,3.21354768]
[1739376216030,0.76697,2607.6,2607.2,0.76704]
[1739376216239,3.9747,2607.8,2607.4,0.76699]
[1739376216438,5.1458,2607.8,2607.5,0.76696]
[1739376216633,1.938,2607.8,2607.5,0.76696]
[1739376216839,0.76692,2607.7,2607.3,0.76701]
[1739376217135,5.1458,2607.8,2607.1,3.21354768]
[1739376217334,0.76699,2607.5,2607.1,0.77282768]
[1739376217530,5.1458,2607.8,2607.1,0.00574768]
[1739376217730,0.76697,2607.6,2607.2,0.76706]
[1739376217930,5.1458,2607.8,2607.1,0.77282768]
[1739376217931,0.76699,2607.5,2607.1,0.77282768]
[1739376218129,0.76701,2607.4,2607.1,0.77282768]
[1739376218536,0.767,2607.5,2607.1,0.77283768]
[1739376218736,5.1458,2607.8,2607.1,0.00574768]
[1739376218935,3.2078,2607.5,2607.1,0.00574768]
[1739376219138,4.03459393,2607.4,2607.1,0.00574768]
[1739376219437,3.97487,2607.2,2607.1,0.00574768]
[1739376220528,3.2078,2607.2,2606.2,0.5989]
[1739376220733,0.76724,2606.7,2606.3,0.76731]
[1739376220944,0.76729,2606.5,2606.2,0.5989]
[1739376221237,0.76737,2606.2,2605.8,3.97526]
[1739376221534,3.2078,2606.6,2605.8,3.2078]
[1739376221739,3.2078,2606.6,2605.8,3.97527]
[1739376221740,0.76738,2606.2,2605.8,3.97527]
[1739376222040,0.00574768,2606.3,2605.8,3.2078]
[1739376222234,3.2078,2606.1,2605.7,0.00574768]
[1739376222433,0.76743,2606.0,2605.7,0.00574768]
[1739376222837,0.76748,2605.8,2605.7,0.00574768]
[1739376223033,3.97528,2605.8,2605.7,0.00574768]
[1739376223434,0.76748,2605.8,2605.7,0.00574768]
[1739376224843,5.91328,2605.8,2605.7,0.00574768]
[1739376225344,5.97993108,2605.8,2605.7,0.00574768]
[1739376225547,1.91886,2605.6,2604.6,0.76782]
[1739376225840,0.7677,2605.1,2604.6,0.76781]
[1739376226036,3.2078,2605.4,2604.6,0.76781]
[1739376226239,0.76772,2605.0,2604.6,0.76781]
[1739376226439,3.2078,2605.4,2604.5,3.2078]
[1739376226639,3.2078,2605.4,2604.8,0.76777]
[1739376226640,0.76767,2605.2,2604.8,0.76777]
[1739376227140,1.939,2605.3,2604.8,4.03459393]
[1739376227336,1.939,2605.3,2605.0,0.76769]
[1739376227531,1.939,2605.9,2605.1,4.03459393]
[1739376227731,3.8165,2606.4,2605.4,7.24239393]
[1739376227937,0.76742,2606.0,2605.6,0.76752]
[1739376228137,0.7674,2606.1,2605.7,0.7675]
[1739376228340,0.76736,2606.2,2605.8,0.76747]
[1739376229048,0.76739,2606.1,2605.4,9.18139393]
[1739376229239,0.76739,2606.1,2605.7,0.76749]
[1739376229547,3.8165,2606.4,2605.7,0.7675]
[1739376230045,0.76746,2605.9,2605.5,0.76754]
[1739376230245,0.76746,2605.9,2605.6,0.76754]
[1739376230439,0.76749,2605.8,2605.4,3.2078]
[1739376230642,0.7675,2605.8,2605.4,3.97538]
[1739376230843,0.76752,2605.7,2605.3,0.76761]
[1739376231039,5.1468,2606.0,2605.2,0.6032]
[1739376231242,0.76756,2605.6,2605.2,1.37084]
[1739376231947,3.2078,2605.5,2605.2,0.6032]
[1739376232146,0.7676,2605.4,2605.1,3.2078]
[1739376232347,5.1468,2605.5,2604.7,3.7879]
[1739376232649,0.76766,2605.2,2604.8,0.76775]
[1739376233149,0.76766,2605.2,2604.9,0.76774]
[1739376233351,0.76764,2605.3,2604.9,0.76774]
[1739376233549,5.1468,2605.5,2604.8,4.03459393]
[1739376233744,0.76767,2605.2,2604.9,0.76771]
[1739376234549,5.1468,2605.5,2604.7,3.7879]
[1739376234746,0.76763,2605.3,2605.0,0.76771]
[1739376234953,5.1468,2605.5,2604.7,3.7879]
[1739376235142,5.1468,2605.5,2605.0,0.7677]
[1739376235342,0.76762,2605.4,2605.0,0.7677]
[1739376236045,0.76762,2605.4,2604.7,3.7879]
[1739376236351,0.76762,2605.4,2605.1,0.76767]
[1739376236551,3.97539,2605.5,2605.0,3.2078]
[1739376236752,0.7676,2605.4,2605.1,0.76767]
[1739376237049,3.97538,2605.5,2605.1,0.76767]
[1739376237354,0.5696,2605.9,2605.1,4.03459393]
[1739376237550,3.97523,2606.0,2605.7,0.7675]
[1739376238346,0.00574768,2606.3,2605.6,3.2078]
[1739376238655,0.00574768,2606.3,2605.9,0.76743]
[1739376239152,0.76736,2606.2,2605.9,0.76743]
[1739376239846,0.00574768,2606.3,2605.8,0.00383176]
[1739376240047,0.00574768,2606.3,2606.2,0.76736]
[1739376240247,0.00574768,2606.3,2606.2,3.97516]
[1739376240652,0.00574768,2606.3,2606.2,3.2078]
[1739376240851,0.00574768,2606.3,2606.2,3.97516]
[1739376241953,0.76714,2607.0,2606.7,0.7672]
[1739376242155,5.1458,2607.1,2606.8,0.76717]
[1739376242156,3.9749,2607.1,2606.8,0.76717]
[1739376242648,3.2078,2607.1,2606.8,0.76717]
[1739376242954,3.2078,2607.1,2606.5,7.24239393]
[1739376242955,3.2078,2607.1,2606.9,0.76714]
[1739376243152,3.9749,2607.1,2606.8,0.76717]
[1739376243457,3.2078,2607.1,2606.8,0.76717]
[1739376243751,0.77282768,2607.2,2607.1,0.76709]
[1739376243752,0.00574768,2607.2,2607.1,0.76709]
[1739376243958,0.00574768,2607.2,2607.1,4.80168393]
[1739376244154,0.00574768,2607.2,2607.1,5.35238393]
[1739376245056,0.00574768,2607.2,2607.1,5.92758393]
[1739376245654,0.00574768,2607.2,2607.1,3.83099]
[1739376245854,0.00574768,2607.2,2607.1,0.5752]
[1739376246052,0.00574768,2607.2,2607.0,3.2078]
[1739376246053,0.77282768,2607.2,2607.0,3.97491]
[1739376246756,0.00574768,2607.2,2607.0,3.97491]
[1739376246958,0.00574768,2607.2,2607.1,0.76709]
[1739376247253,0.77282768,2607.2,2607.0,3.2078]
[1739376247558,0.00574768,2607.2,2607.0,3.2078]
[1739376247757,0.77282768,2607.2,2607.0,3.2078]
[1739376248154,0.77281768,2607.2,2607.0,3.2078]
[1739376248359,0.00574768,2607.2,2607.0,3.2078]
[1739376248663,0.00574768,2607.2,2607.1,0.76709]
[1739376249363,0.00574768,2607.2,2607.0,0.7671]
[1739376250258,0.77281768,2607.2,2606.9,0.76714]
[1739376250463,0.77282768,2607.2,2606.9,0.76714]
[1739376250860,0.77282768,2607.2,2607.0,0.76711]
[1739376250861,0.00574768,2607.2,2607.0,0.76711]
[1739376251352,0.77282768,2607.2,2606.9,0.76713]
[1739376251659,0.7671,2607.1,2606.8,0.76717]
[1739376251960,0.00574768,2607.2,2606.6,0.5752]
[1739376252162,0.00574768,2607.2,2607.0,0.7671]
[1739376252357,0.00574768,2607.2,2607.1,0.76709]
[1739376253962,3.2078,2608.6,2607.1,10.03459393]
[1739376254163,0.76676,2608.3,2608.0,0.76683]
[1739376254363,2.5406,2608.5,2607.8,3.2078]
[1739376254665,0.76675,2608.3,2607.8,3.2078]
[1739376254859,2.5406,2608.5,2607.8,3.2078]
[1739376255062,0.76678,2608.2,2607.9,0.76685]
[1739376255263,0.77247768,2608.4,2608.1,0.7668]
[1739376255559,0.00574768,2608.4,2607.9,0.00574768]
[1739376255764,0.76679,2608.2,2607.9,0.00574768]
[1739376255955,4.80142393,2608.0,2607.9,0.00574768]
[1739376256159,4.03459393,2608.0,2607.3,0.76702]
[1739376256359,3.8136,2607.9,2607.2,3.7716]
[1739376256563,0.7669,2607.8,2607.4,0.76699]
[1739376256865,0.7669,2607.8,2607.5,0.76698]
[1739376257066,3.8136,2607.9,2607.2,3.7716]
[1739376257370,0.76692,2607.7,2607.4,0.76698]
[1739376257555,3.8136,2607.9,2607.5,0.76697]
[1739376257864,4.58047,2607.9,2607.6,0.76694]
[1739376258065,0.6058,2607.9,2607.8,3.97469]
[1739376258273,0.76676,2608.3,2607.9,0.76684]
[1739376258656,1.34477768,2608.4,2608.1,0.7668]
[1739376259062,1.34477768,2608.4,2608.0,0.76681]
[1739376259268,0.57804768,2608.4,2608.1,0.7668]
[1739376259568,1.34476768,2608.4,2608.1,0.7668]
[1739376259968,0.57804768,2608.4,2607.8,3.2078]
[1739376260167,0.57804768,2608.4,2608.3,0.76674]
[1739376260367,0.57804768,2608.4,2607.8,3.2078]
[1739376260568,0.57804768,2608.4,2608.3,0.76674]
[1739376260772,0.57804768,2608.4,2608.1,3.2078]
[1739376261069,0.57804768,2608.4,2608.3,0.76674]
[1739376261259,0.00574768,2608.4,2608.3,0.76674]
[1739376262263,0.00574768,2608.4,2608.3,4.80133393]
[1739376262664,0.00574768,2608.4,2608.3,0.76674]
[1739376264772,0.00574768,2608.4,2608.2,0.5961]
[1739376264965,0.00574768,2608.4,2608.1,3.2078]
[1739376265165,0.77246768,2608.4,2608.2,0.76676]
[1739376265872,0.00574768,2608.4,2608.2,0.76676]
[1739376266073,0.00574768,2608.4,2608.1,3.2078]
[1739376266074,0.00574768,2608.4,2608.3,0.76674]
[1739376266764,0.00574768,2608.4,2608.3,4.80133393]
[1739376270276,0.00574768,2608.4,2608.3,0.76674]
[1739376272275,0.77245768,2608.4,2608.3,0.76674]
[1739376272476,0.00574768,2608.4,2608.3,0.76674]
[1739376272775,0.00574768,2608.4,2608.3,4.80133393]
[1739376273169,0.76649,2609.2,2609.1,0.76648]
[1739376273369,0.76646,2609.3,2609.2,0.76646]
[1739376274178,1.1921,2609.6,2609.2,0.76646]
[1739376274377,0.00574768,2609.5,2609.2,0.76646]
[1739376274577,0.76645,2609.3,2609.2,0.76646]
[1739376275171,0.00574768,2609.5,2609.2,0.76646]
[1739376275476,0.76643,2609.4,2609.2,0.76646]
[1739376275867,0.00574768,2609.5,2609.0,0.00574768]
[1739376276569,0.00574768,2609.5,2609.2,3.2078]
[1739376276773,0.76644,2609.4,2609.2,3.97428]
[1739376276975,0.76651,2609.1,2609.0,0.00574768]
[1739376277170,0.76666,2608.6,2608.4,1.35901]
[1739376277478,0.76666,2608.6,2608.3,3.97453]
[1739376278179,0.76667,2608.6,2608.3,3.97454]
[1739376278880,6.8962,2608.9,2608.3,3.2078]
[1739376279072,0.76671,2608.4,2608.3,3.2078]
[1739376283175,0.76674,2608.3,2608.2,0.00574768]
[1739376283570,3.97454,2608.3,2608.2,0.00574768]
[1739376284079,10.54824,2608.3,2608.2,0.00574768]
[1739376284278,9.7815,2608.3,2607.6,3.2078]
[1739376284577,9.7815,2608.3,2607.5,0.582]
[1739376284578,3.2078,2608.0,2607.3,3.97482]
[1739376284967,0.76699,2607.5,2607.3,3.97482]
[1739376285168,5.1408,2607.9,2607.1,0.5737]
[1739376285375,5.1252,2607.6,2607.0,3.2078]
[1739376285576,0.76705,2607.3,2607.2,0.00383176]
[1739376287071,0.76703,2607.4,2607.2,0.00383176]
[1739376287272,0.5732,2607.7,2607.2,0.00383176]
[1739376287474,0.76699,2607.5,2607.2,0.77088176]
[1739376287780,1.1349,2607.7,2607.4,0.767]
[1739376288079,0.00574768,2607.8,2607.7,0.76692]
[1739376288279,0.00574768,2607.8,2607.7,2.69892]
[1739376288482,0.5817,2608.7,2608.5,0.76668]
[1739376288988,0.5817,2608.7,2608.4,3.9745]
[1739376288989,0.76665,2608.7,2608.4,3.9745]
[1739376289175,1.34211,2608.8,2608.5,0.76667]
[1739376289577,0.5755,2608.8,2608.5,0.76667]
[1739376289779,0.00574768,2608.9,2608.7,3.97442]
[1739376290076,0.00574768,2608.9,2608.3,4.03459393]
[1739376290077,0.00574768,2608.9,2608.5,0.76666]
[1739376290277,0.00574768,2608.9,2608.7,3.2078]
[1739376291281,4.3258,2610.1,2608.8,3.30959]
[1739376291580,4.3258,2610.1,2609.2,4.03459393]
[1739376291775,3.2078,2609.8,2609.0,3.2078]
[1739376291977,0.76649,2609.2,2608.7,0.76661]
[1739376292177,3.2078,2609.5,2608.6,4.03459393]
[1739376292378,1.33192,2609.1,2608.6,4.80123393]
[1739376292581,0.5654,2609.1,2608.5,3.21354768]
[1739376292772,0.7666,2608.8,2608.5,0.00574768]
[1739376292978,1.932,2608.8,2608.5,0.00574768]
[1739376293180,3.2078,2608.6,2607.7,4.03459393]
[1739376293389,3.2078,2608.6,2607.7,7.24239393]
[1739376293684,3.2078,2608.6,2607.7,4.03459393]
[1739376293990,5.1398,2608.6,2608.0,0.76681]
[1739376294284,1.932,2608.6,2608.0,0.76681]
[1739376294482,5.1398,2608.6,2608.0,0.00574768]
[1739376294686,0.7668,2608.1,2608.0,0.00574768]
[1739376295084,0.76688,2607.9,2607.4,4.80159393]
[1739376295385,0.5779,2608.0,2607.4,7.24239393]
[1739376295688,0.76688,2607.9,2607.5,0.76697]
[1739376295987,0.76691,2607.8,2607.4,3.2078]
[1739376296178,3.2078,2607.5,2607.4,0.00383176]
[1739376296377,3.2078,2607.5,2606.2,4.03459393]
[1739376296378,5.20639665,2607.5,2606.2,4.03459393]
[1739376296584,3.2078,2607.0,2606.1,3.2078]
[1739376296883,3.2078,2607.0,2606.3,0.76731]
[1739376296884,5.90693,2607.0,2606.3,0.76731]
[1739376297284,0.76716,2606.9,2606.3,0.76733]
[1739376297484,5.1398,2607.0,2606.3,0.76733]
[1739376297683,5.90694,2607.0,2606.3,0.76733]
[1739376298085,0.76719,2606.8,2606.2,4.03459393]
[1739376298284,0.76721,2606.7,2606.2,4.03459393]
[1739376298491,5.1398,2607.0,2606.2,4.03459393]
[1739376298692,0.76717,2606.9,2606.3,0.76732]
[1739376298886,5.1398,2607.0,2606.3,0.76732]
[1739376299189,5.90694,2607.0,2606.3,0.76732]
[1739376299393,0.76717,2606.9,2606.3,0.76732]
[1739376299587,3.2078,2607.0,2606.5,4.03459393]
[1739376299896,3.2078,2607.0,2606.5,4.80184393]
[1739376300087,3.2078,2607.0,2606.5,5.37764393]
[1739376300281,3.2078,2607.0,2606.5,0.5758]
[1739376300587,3.2078,2607.1,2606.4,3.2078]
[1739376300785,0.76723,2606.7,2606.3,0.5758]
[1739376301490,0.76724,2606.6,2606.3,0.5758]
[1739376301689,3.2078,2606.8,2606.0,0.5974]
[1739376301990,0.76733,2606.3,2605.8,3.97526]
[1739376302196,0.76738,2606.2,2605.8,3.2078]
[1739376302494,0.76731,2606.4,2605.9,4.80202393]
[1739376302686,5.1398,2606.5,2605.9,4.03459393]
[1739376302890,5.1398,2606.5,2605.6,0.5758]
[1739376302891,0.76743,2606.0,2605.6,0.5758]
[1739376303085,0.76748,2605.9,2605.6,0.5758]
[1739376303281,3.2078,2606.2,2605.4,0.588]
[1739376303488,0.76747,2605.9,2605.4,1.92168]
[1739376303686,3.2078,2606.2,2605.5,0.76756]
[1739376303888,0.76745,2605.9,2605.4,1.92168]
[1739376304491,3.2078,2606.2,2605.4,1.1541]
[1739376304698,3.2078,2605.9,2605.4,0.5661]
[1739376304886,2.69946,2605.9,2605.5,0.76756]
[1739376305192,2.69946,2605.9,2605.4,0.5661]
[1739376305193,0.76751,2605.7,2605.4,0.5661]
[1739376305593,5.1398,2605.9,2605.4,0.5661]
[1739376305796,0.76753,2605.7,2605.2,3.97544]
[1739376305983,0.5741,2605.8,2605.2,3.2078]
[1739376306292,0.76755,2605.6,2605.2,3.97544]
[1739376306596,0.5741,2605.8,2605.2,3.2078]
[1739376306796,0.76756,2605.6,2605.2,3.97545]
[1739376307295,0.5741,2605.8,2605.2,3.97544]
[1739376307490,1.34159,2605.8,2605.4,0.76758]
[1739376307685,0.76753,2605.7,2605.3,0.76762]
[1739376307885,0.76751,2605.7,2605.3,0.76761]
[1739376308086,0.5741,2605.8,2605.2,3.2078]
[1739376308287,0.5741,2605.8,2604.9,3.7745]
[1739376308288,3.2078,2605.6,2604.9,0.5667]
[1739376308589,0.76764,2605.3,2604.9,1.33443]
[1739376308995,0.7677,2605.1,2604.8,3.2078]
[1739376310088,3.2078,2605.0,2604.1,4.59349393]
[1739376310295,0.76795,2604.2,2603.8,1.33535]
[1739376310490,1.932,2604.3,2603.6,3.7667]
[1739376310691,0.76801,2604.0,2603.6,3.7667]
[1739376310890,3.2078,2604.2,2603.6,4.5348]
[1739376310891,0.76799,2604.1,2603.6,4.5348]
[1739376311085,3.2078,2604.1,2603.6,3.2078]
[1739376311292,3.2078,2603.8,2603.3,3.2078]
[1739376311488,1.932,2603.7,2602.9,4.80290393]
[1739376311692,3.2078,2603.8,2603.0,0.76827]
[1739376311894,2.70012,2603.7,2603.1,3.2078]
[1739376312195,0.76818,2603.5,2602.9,0.76832]
[1739376312397,3.2078,2603.5,2602.8,3.2078]
[1739376312591,1.932,2603.7,2602.8,3.2078]
[1739376313099,3.2078,2603.6,2602.8,3.2078]
[1739376313501,2.7001,2603.7,2603.1,3.97606]
[1739376313800,1.932,2603.7,2603.1,3.97606]
[1739376314099,2.7001,2603.7,2603.1,3.97606]
[1739376314295,2.70011,2603.7,2603.1,3.97607]
[1739376314497,1.932,2603.7,2602.9,4.03459393]
[1739376314700,0.76816,2603.5,2602.9,4.80291393]
[1739376315199,0.7682,2603.4,2602.9,4.03459393]
[1739376315502,0.76823,2603.3,2602.8,3.2078]
[1739376315703,1.933,2603.2,2602.8,3.2078]
[1739376316196,1.933,2603.2,2602.8,3.97616]
[1739376316400,1.933,2603.5,2603.1,3.97607]
[1739376316602,3.2078,2603.9,2603.4,3.2078]
[1739376317102,0.76807,2603.8,2603.4,3.2078]
[1739376317503,0.76816,2603.5,2603.0,3.97609]
[1739376317702,3.2078,2603.9,2603.0,3.97609]
[1739376317899,0.76818,2603.5,2603.0,3.97609]
[1739376318093,3.2078,2603.9,2603.0,3.2078]
[1739376318299,3.2078,2603.6,2603.0,3.2078]
[1739376318603,0.7682,2603.4,2603.0,3.2078]
[1739376318803,1.933,2603.5,2603.0,3.2078]
[1739376319002,3.2078,2603.3,2602.4,3.7751]
[1739376319303,0.76834,2602.9,2602.5,0.76844]
[1739376319500,5.1408,2603.0,2602.6,0.76841]
[1739376319898,0.76834,2602.9,2602.5,0.76844]
[1739376320102,1.933,2603.0,2602.6,0.7684]
[1739376320602,2.70131,2603.0,2602.6,0.7684]
[1739376320913,0.76834,2602.9,2602.5,0.76843]
[1739376321097,1.933,2603.0,2602.4,3.7751]
[1739376321391,2.70131,2603.0,2602.6,0.7684]
[1739376321590,2.70131,2603.0,2602.5,0.76843]
[1739376321904,1.933,2603.0,2602.4,3.7751]
[1739376322204,0.76834,2602.9,2602.5,0.76845]
[1739376322403,1.933,2603.0,2602.4,3.2078]
[1739376322404,0.76838,2602.8,2602.4,3.2078]
[1739376322602,5.1408,2603.0,2602.4,3.2078]
[1739376322906,0.76855,2602.2,2602.0,3.2078]
[1739376323604,2.70152,2602.3,2602.0,3.2078]
[1739376323795,3.81655893,2602.4,2602.0,3.2078]
[1739376323796,0.60875893,2602.4,2602.0,3.2078]
[1739376323998,0.76854,2602.3,2602.0,3.2078]
[1739376324300,0.76861,2602.0,2601.7,3.2078]
[1739376324800,2.54175893,2602.4,2601.7,3.2078]
[1739376325001,4.03459393,2602.2,2601.7,3.2078]
[1739376325204,4.03459393,2602.2,2601.2,1.7321]
[1739376325205,9.16375393,2602.2,2601.4,3.97657]
[1739376325411,0.76868,2601.8,2601.4,3.97657]
[1739376326104,0.5724,2601.8,2601.1,3.2078]
[1739376326309,7.24239393,2601.6,2600.9,0.76891]
[1739376326505,0.5518,2601.7,2600.8,7.24239393]
[1739376326813,3.25351,2601.7,2601.2,0.76882]
[1739376327101,0.76872,2601.6,2601.1,3.97665]
[1739376327304,3.2078,2601.6,2601.1,3.2078]
[1739376327608,0.76882,2601.3,2600.8,3.97674]
[1739376327801,1.934,2601.2,2600.8,3.2078]
[1739376328000,5.1418,2601.2,2600.6,0.5785]
[1739376328210,5.1418,2601.2,2600.4,3.2078]
[1739376328505,0.7688,2601.4,2600.7,3.2078]
[1739376328701,0.5518,2601.7,2601.0,3.2078]
[1739376328898,0.00575893,2601.3,2601.0,7.24239393]
[1739376329097,0.00575893,2601.3,2601.0,3.2078]
[1739376329709,0.77457893,2601.3,2601.0,3.2078]
[1739376330334,0.57395893,2601.3,2600.9,0.7689]
[1739376330610,0.57395893,2601.3,2600.8,3.2078]
[1739376330611,0.00575893,2601.3,2600.8,3.2078]
[1739376330812,0.5861,2601.9,2601.1,3.2078]
[1739376331110,0.76861,2602.0,2601.6,3.97651]
[1739376331610,3.2078,2602.2,2601.2,0.5713]
[1739376331909,7.24239393,2602.2,2601.4,0.76875]
[1739376332098,0.7638771,2601.8,2601.4,0.77450893]
[1739376332302,0.76875,2601.5,2601.4,0.00575893]
[1739376332705,1.934,2601.8,2601.5,0.76873]
[1739376333308,1.934,2601.8,2601.4,0.00575893]
[1739376333503,0.76873,2601.6,2601.4,0.00575893]
[1739376333701,0.76875,2601.5,2601.4,0.00575893]
[1739376334704,1.34125,2601.5,2601.4,0.00575893]
[1739376335098,0.5725,2601.5,2601.4,0.00575893]
[1739376335304,1.934,2601.8,2601.4,0.00575893]
[1739376335711,0.76866,2601.8,2601.4,0.77450893]
[1739376336012,0.76864,2601.9,2601.5,0.76874]
[1739376336305,0.00575893,2602.0,2601.5,0.76874]
[1739376336306,0.77436893,2602.0,2601.6,0.76869]
[1739376336510,0.00575893,2602.0,2601.9,0.76863]
[1739376336810,0.5725,2602.7,2602.4,0.76846]
[1739376337015,0.01436,2602.9,2602.5,3.2078]
[1739376337309,0.01436,2602.9,2602.4,3.2078]
[1739376337511,0.01436,2602.9,2602.6,0.76842]
[1739376337914,0.01436,2602.9,2602.8,0.76836]
[1739376338206,0.01436,2602.9,2602.7,3.2078]
[1739376338509,0.01436,2602.9,2602.8,0.76836]
[1739376338703,0.01436,2602.9,2602.8,4.80295393]
[1739376339106,0.00575893,2603.0,2602.8,4.03459393]
[1739376339407,0.00575893,2603.0,2602.9,0.76833]
[1739376340010,0.00575893,2603.0,2602.7,3.2078]
[1739376340202,0.00575893,2603.0,2602.7,3.97617]
[1739376341215,0.00575893,2603.0,2602.8,0.76836]
[1739376341608,0.00575893,2603.0,2602.7,3.97619]
[1739376342110,0.77408893,2603.0,2602.7,3.2078]
[1739376342513,0.00575893,2603.0,2602.8,0.76834]
[1739376342808,0.00575893,2603.0,2602.7,3.97617]
[1739376343015,0.77406893,2603.0,2602.7,3.2078]
[1739376343310,0.00575893,2603.0,2602.7,3.97619]
[1739376343507,0.00575893,2603.0,2602.4,3.2078]
[1739376343708,0.76838,2602.8,2602.4,3.2078]
[1739376343908,0.00575893,2603.0,2602.3,1.1431]
[1739376344108,0.7684,2602.7,2602.3,1.1431]
[1739376344412,0.76839,2602.8,2602.3,1.9116]
[1739376344720,0.77407893,2603.0,2602.6,0.76841]
[1739376345108,0.76833,2602.9,2602.5,0.76843]
[1739376345510,0.00575893,2603.0,2602.3,4.3509]
[1739376345709,0.00575893,2603.0,2602.9,3.97613]
[1739376346604,0.00575893,2603.0,2602.9,3.2078]
[1739376346812,0.00575893,2603.0,2602.7,3.2078]
[1739376347017,0.76833,2602.9,2602.7,3.2078]
[1739376347316,0.00575893,2603.0,2602.7,3.2078]
[1739376347704,0.77407893,2603.0,2602.7,3.97619]
[1739376348405,0.77405893,2603.0,2602.7,3.97618]
[1739376348715,0.00575893,2603.0,2602.7,3.97618]
[1739376348911,0.77406893,2603.0,2602.7,3.97618]
[1739376349611,0.77405893,2603.0,2602.7,3.97618]
[1739376350015,0.00575893,2603.0,2602.3,1.1431]
[1739376350220,0.77408893,2603.0,2602.6,3.2078]
[1739376350519,0.00575893,2603.0,2602.6,3.2078]
[1739376350720,0.00575893,2603.0,2602.8,0.76835]
[1739376350923,0.00575893,2603.0,2602.9,3.97613]
[1739376352823,0.76814,2603.6,2603.4,0.76816]
[1739376353024,0.76814,2603.6,2603.5,0.76816]
[1739376353323,0.76814,2603.6,2603.4,0.76818]
[1739376353723,0.76814,2603.6,2603.5,0.76816]
[1739376353913,0.77383893,2603.8,2603.6,0.76811]
[1739376354121,0.00575893,2603.8,2603.3,3.2078]
[1739376354319,0.76821,2603.3,2603.2,0.00575893]
[1739376354613,0.76817,2603.5,2603.3,0.76821]
[1739376354821,0.76821,2603.3,2603.2,0.00575893]
[1739376356523,3.97601,2603.3,2603.2,0.00575893]
[1739376356931,0.76819,2603.4,2603.2,0.00575893]
[1739376357425,1.32698,2603.5,2603.2,0.77399893]
[1739376357625,5.691,2603.6,2603.2,0.00575893]
[1739376357828,0.7682,2603.4,2603.2,0.00575893]
[1739376358124,5.691,2603.6,2603.2,0.00575893]
[1739376358627,0.7682,2603.4,2603.2,0.00575893]
[1739376358820,5.691,2603.6,2603.2,0.00575893]
[1739376359022,0.76817,2603.5,2603.2,0.00575893]
[1739376359217,3.759,2603.6,2603.2,0.77399893]
[1739376359429,3.759,2603.6,2603.3,0.76821]
[1739376359630,3.97594,2603.6,2603.4,0.76818]
[1739376360216,3.97594,2603.6,2603.2,0.00575893]
[1739376360217,3.2078,2603.6,2603.2,0.00575893]
[1739376360427,0.76821,2603.4,2603.2,0.00575893]
[1739376360922,0.00575893,2603.8,2603.7,0.7681]
[1739376361121,0.00575893,2603.8,2603.7,3.9759]
[1739376361519,1.91812,2604.7,2603.9,1.92003]
[1739376361727,1.9181,2604.7,2604.4,0.76787]
[1739376361926,1.91812,2604.7,2604.4,0.76788]
[1739376362124,1.932,2604.8,2604.5,3.2078]
[1739376362322,4.03459393,2605.5,2604.5,3.2078]
[1739376362323,1.1699,2605.2,2604.7,4.03459393]
[1739376362522,0.76755,2605.6,2605.2,0.76765]
[1739376362721,0.76755,2605.6,2605.2,3.97545]
[1739376362922,0.76754,2605.6,2605.2,3.97545]
[1739376363125,0.00575893,2605.7,2605.1,0.00575893]
[1739376363421,0.77327893,2605.7,2605.2,0.76764]
[1739376363622,0.00575893,2605.7,2605.5,0.76756]
[1739376363927,0.00575893,2605.7,2605.2,3.2078]
[1739376364127,0.00575893,2605.7,2605.4,0.76757]
[1739376364325,0.00575893,2605.7,2605.5,3.97535]
[1739376364635,0.00575893,2605.7,2605.6,0.76754]
[1739376365222,0.5845,2606.6,2605.6,7.931]
[1739376365428,0.5845,2606.6,2606.0,0.7674]
[1739376365623,0.5845,2606.6,2605.9,3.2078]
[1739376365822,1.35176,2606.6,2605.8,3.2078]
[1739376366026,0.5845,2606.6,2606.1,3.2078]
[1739376366227,1.35176,2606.6,2606.1,3.2078]
[1739376366423,0.59025893,2606.6,2606.1,3.2078]
[1739376366627,1.35749893,2606.6,2606.1,3.2078]
[1739376367021,0.76734,2606.3,2605.7,3.2078]
[1739376367730,3.2078,2606.4,2605.7,3.2078]
[1739376367927,0.76733,2606.3,2605.7,3.2078]
[1739376368123,0.59025893,2606.6,2605.9,0.76743]
[1739376368519,0.76729,2606.5,2605.8,0.76745]
[1739376368723,0.76729,2606.5,2605.9,0.76745]
[1739376368919,0.59025893,2606.6,2606.0,3.2078]
[1739376369136,0.00575893,2606.6,2606.5,0.76727]
[1739376369931,0.00575893,2606.6,2606.5,3.97507]
[1739376370134,0.00575893,2606.6,2606.5,0.76727]
[1739376370433,0.00575893,2606.6,2606.1,8.84606109]
[1739376370634,0.00575893,2606.6,2606.5,0.76727]
[1739376371036,0.76728,2606.5,2606.0,0.7674]
[1739376371230,0.00575893,2606.6,2605.8,3.2078]
[1739376371437,0.00575893,2606.6,2606.1,0.76737]
[1739376371438,0.77300893,2606.6,2606.1,0.76737]
[1739376372027,0.76736,2606.3,2605.8,3.97525]
[1739376372233,3.2078,2606.4,2605.5,3.8165]
[1739376372426,0.76743,2606.0,2605.5,3.97535]
[1739376372632,0.76741,2606.1,2605.6,0.76753]
[1739376372831,0.76741,2606.1,2605.5,3.2078]
[1739376373026,3.2078,2606.4,2605.8,3.2078]
[1739376373225,3.2078,2606.4,2605.7,3.2078]
[1739376373430,3.97511,2606.4,2605.9,0.76743]
[1739376373831,3.2078,2606.4,2605.7,3.2078]
[1739376374335,2.5408,2606.5,2606.1,0.76737]
[1739376374531,2.5408,2606.5,2606.2,0.76735]
[1739376374836,2.5408,2606.5,2606.0,3.2078]
[1739376375131,3.30808,2606.5,2606.0,3.97522]
[1739376375332,2.5408,2606.5,2606.0,3.97522]
[1739376375731,2.5408,2606.5,2606.0,3.2078]